Workbook

Sheet Summary
I1: Table11
I2: Type | J2: Lo | K2: Hi
I3: Ferritin | J3: 400 | K3: 700
I4: HCT | J4: 25 | K4: 30
I5: Hemoglobin | J5: 10 | K5: 11
I6: Iron | J6: 20 | K6: 60
I7: Potassium | J7: 5 | K7: 5.5
I8: CaxP | J8: 0.25 | K8: 0.75
B10: Table10 | I10: Table12
B11: Type | C11: Jan | D11: Feb | E11: Mar | F11: Apr | G11: May | I11: Type | J11: Jan | K11: Feb | L11: Mar | M11: Apr | N11: May
B12: Calcium | C12: 0.02 | D12: 0.54 | E12: 0.13 | F12: 0.53 | G12: 0.57 | I12: Ferritin | J12: =IFERROR(COUNTIFS(Table10[Type],[Type],INDIRECT("Table10["&Table12[#Headers]&"]"),">="&INDEX(Table11[Lo],rown),INDIRECT("Table10["&Table12[#Headers]&"]"),"<="&INDEX(Table11[Hi],rown))/COUNTIFS(Table10[Type],[Type],INDIRECT("Table10["&Table12[#Headers]&"]"),">0"),NA()) -> 0.625 | K12: =IFERROR(COUNTIFS(Table10[Type],[Type],INDIRECT("Table10["&Table12[#Headers]&"]"),">="&INDEX(Table11[Lo],rown),INDIRECT("Table10["&Table12[#Headers]&"]"),"<="&INDEX(Table11[Hi],rown))/COUNTIFS(Table10[Type],[Type],INDIRECT("Table10["&Table12[#Headers]&"]"),">0"),NA()) -> 1 | L12: =IFERROR(COUNTIFS(Table10[Type],[Type],INDIRECT("Table10["&Table12[#Headers]&"]"),">="&INDEX(Table11[Lo],rown),INDIRECT("Table10["&Table12[#Headers]&"]"),"<="&INDEX(Table11[Hi],rown))/COUNTIFS(Table10[Type],[Type],INDIRECT("Table10["&Table12[#Headers]&"]"),">0"),NA()) -> 0.5 | M12: =IFERROR(COUNTIFS(Table10[Type],[Type],INDIRECT("Table10["&Table12[#Headers]&"]"),">="&INDEX(Table11[Lo],rown),INDIRECT("Table10["&Table12[#Headers]&"]"),"<="&INDEX(Table11[Hi],rown))/COUNTIFS(Table10[Type],[Type],INDIRECT("Table10["&Table12[#Headers]&"]"),">0"),NA()) -> 0.5 | N12: =IFERROR(COUNTIFS(Table10[Type],[Type],INDIRECT("Table10["&Table12[#Headers]&"]"),">="&INDEX(Table11[Lo],rown),INDIRECT("Table10["&Table12[#Headers]&"]"),"<="&INDEX(Table11[Hi],rown))/COUNTIFS(Table10[Type],[Type],INDIRECT("Table10["&Table12[#Headers]&"]"),">0"),NA()) -> 0.5
B13: Calcium | C13: 0.02 | D13: 0.94 | E13: 0.95 | F13: 0.86 | G13: 0.67 | I13: HCT | J13: =IFERROR(COUNTIFS(Table10[Type],[Type],INDIRECT("Table10["&Table12[#Headers]&"]"),">="&INDEX(Table11[Lo],rown),INDIRECT("Table10["&Table12[#Headers]&"]"),"<="&INDEX(Table11[Hi],rown))/COUNTIFS(Table10[Type],[Type],INDIRECT("Table10["&Table12[#Headers]&"]"),">0"),NA()) -> 0.375 | K13: =IFERROR(COUNTIFS(Table10[Type],[Type],INDIRECT("Table10["&Table12[#Headers]&"]"),">="&INDEX(Table11[Lo],rown),INDIRECT("Table10["&Table12[#Headers]&"]"),"<="&INDEX(Table11[Hi],rown))/COUNTIFS(Table10[Type],[Type],INDIRECT("Table10["&Table12[#Headers]&"]"),">0"),NA()) -> 0.5 | L13: =IFERROR(COUNTIFS(Table10[Type],[Type],INDIRECT("Table10["&Table12[#Headers]&"]"),">="&INDEX(Table11[Lo],rown),INDIRECT("Table10["&Table12[#Headers]&"]"),"<="&INDEX(Table11[Hi],rown))/COUNTIFS(Table10[Type],[Type],INDIRECT("Table10["&Table12[#Headers]&"]"),">0"),NA()) -> 1 | M13: =IFERROR(COUNTIFS(Table10[Type],[Type],INDIRECT("Table10["&Table12[#Headers]&"]"),">="&INDEX(Table11[Lo],rown),INDIRECT("Table10["&Table12[#Headers]&"]"),"<="&INDEX(Table11[Hi],rown))/COUNTIFS(Table10[Type],[Type],INDIRECT("Table10["&Table12[#Headers]&"]"),">0"),NA()) -> 0.5 | N13: =IFERROR(COUNTIFS(Table10[Type],[Type],INDIRECT("Table10["&Table12[#Headers]&"]"),">="&INDEX(Table11[Lo],rown),INDIRECT("Table10["&Table12[#Headers]&"]"),"<="&INDEX(Table11[Hi],rown))/COUNTIFS(Table10[Type],[Type],INDIRECT("Table10["&Table12[#Headers]&"]"),">0"),NA()) -> 0.125
B14: Calcium | C14: 0.05 | D14: 0.83 | E14: 0.36 | F14: 0.71 | G14: 0.06 | I14: Hemoglobin | J14: =IFERROR(COUNTIFS(Table10[Type],[Type],INDIRECT("Table10["&Table12[#Headers]&"]"),">="&INDEX(Table11[Lo],rown),INDIRECT("Table10["&Table12[#Headers]&"]"),"<="&INDEX(Table11[Hi],rown))/COUNTIFS(Table10[Type],[Type],INDIRECT("Table10["&Table12[#Headers]&"]"),">0"),NA()) -> 0.375 | K14: =IFERROR(COUNTIFS(Table10[Type],[Type],INDIRECT("Table10["&Table12[#Headers]&"]"),">="&INDEX(Table11[Lo],rown),INDIRECT("Table10["&Table12[#Headers]&"]"),"<="&INDEX(Table11[Hi],rown))/COUNTIFS(Table10[Type],[Type],INDIRECT("Table10["&Table12[#Headers]&"]"),">0"),NA()) -> 0.625 | L14: =IFERROR(COUNTIFS(Table10[Type],[Type],INDIRECT("Table10["&Table12[#Headers]&"]"),">="&INDEX(Table11[Lo],rown),INDIRECT("Table10["&Table12[#Headers]&"]"),"<="&INDEX(Table11[Hi],rown))/COUNTIFS(Table10[Type],[Type],INDIRECT("Table10["&Table12[#Headers]&"]"),">0"),NA()) -> 0.25 | M14: =IFERROR(COUNTIFS(Table10[Type],[Type],INDIRECT("Table10["&Table12[#Headers]&"]"),">="&INDEX(Table11[Lo],rown),INDIRECT("Table10["&Table12[#Headers]&"]"),"<="&INDEX(Table11[Hi],rown))/COUNTIFS(Table10[Type],[Type],INDIRECT("Table10["&Table12[#Headers]&"]"),">0"),NA()) -> 0.5 | N14: =IFERROR(COUNTIFS(Table10[Type],[Type],INDIRECT("Table10["&Table12[#Headers]&"]"),">="&INDEX(Table11[Lo],rown),INDIRECT("Table10["&Table12[#Headers]&"]"),"<="&INDEX(Table11[Hi],rown))/COUNTIFS(Table10[Type],[Type],INDIRECT("Table10["&Table12[#Headers]&"]"),">0"),NA()) -> 0.25
B15: Calcium | C15: 0.26 | D15: 0.38 | E15: 0.86 | F15: 0.25 | G15: 0.96 | I15: Iron | J15: =IFERROR(COUNTIFS(Table10[Type],[Type],INDIRECT("Table10["&Table12[#Headers]&"]"),">="&INDEX(Table11[Lo],rown),INDIRECT("Table10["&Table12[#Headers]&"]"),"<="&INDEX(Table11[Hi],rown))/COUNTIFS(Table10[Type],[Type],INDIRECT("Table10["&Table12[#Headers]&"]"),">0"),NA()) -> 1 | K15: =IFERROR(COUNTIFS(Table10[Type],[Type],INDIRECT("Table10["&Table12[#Headers]&"]"),">="&INDEX(Table11[Lo],rown),INDIRECT("Table10["&Table12[#Headers]&"]"),"<="&INDEX(Table11[Hi],rown))/COUNTIFS(Table10[Type],[Type],INDIRECT("Table10["&Table12[#Headers]&"]"),">0"),NA()) -> 0.625 | L15: =IFERROR(COUNTIFS(Table10[Type],[Type],INDIRECT("Table10["&Table12[#Headers]&"]"),">="&INDEX(Table11[Lo],rown),INDIRECT("Table10["&Table12[#Headers]&"]"),"<="&INDEX(Table11[Hi],rown))/COUNTIFS(Table10[Type],[Type],INDIRECT("Table10["&Table12[#Headers]&"]"),">0"),NA()) -> 1 | M15: =IFERROR(COUNTIFS(Table10[Type],[Type],INDIRECT("Table10["&Table12[#Headers]&"]"),">="&INDEX(Table11[Lo],rown),INDIRECT("Table10["&Table12[#Headers]&"]"),"<="&INDEX(Table11[Hi],rown))/COUNTIFS(Table10[Type],[Type],INDIRECT("Table10["&Table12[#Headers]&"]"),">0"),NA()) -> 0.5 | N15: =IFERROR(COUNTIFS(Table10[Type],[Type],INDIRECT("Table10["&Table12[#Headers]&"]"),">="&INDEX(Table11[Lo],rown),INDIRECT("Table10["&Table12[#Headers]&"]"),"<="&INDEX(Table11[Hi],rown))/COUNTIFS(Table10[Type],[Type],INDIRECT("Table10["&Table12[#Headers]&"]"),">0"),NA()) -> 0.75
B16: Calcium | C16: 0.39 | D16: 0.8 | E16: 0.06 | F16: 0.99 | G16: 0.76 | I16: Potassium | J16: =IFERROR(COUNTIFS(Table10[Type],[Type],INDIRECT("Table10["&Table12[#Headers]&"]"),">="&INDEX(Table11[Lo],rown),INDIRECT("Table10["&Table12[#Headers]&"]"),"<="&INDEX(Table11[Hi],rown))/COUNTIFS(Table10[Type],[Type],INDIRECT("Table10["&Table12[#Headers]&"]"),">0"),NA()) -> 0.125 | K16: =IFERROR(COUNTIFS(Table10[Type],[Type],INDIRECT("Table10["&Table12[#Headers]&"]"),">="&INDEX(Table11[Lo],rown),INDIRECT("Table10["&Table12[#Headers]&"]"),"<="&INDEX(Table11[Hi],rown))/COUNTIFS(Table10[Type],[Type],INDIRECT("Table10["&Table12[#Headers]&"]"),">0"),NA()) -> 0 | L16: =IFERROR(COUNTIFS(Table10[Type],[Type],INDIRECT("Table10["&Table12[#Headers]&"]"),">="&INDEX(Table11[Lo],rown),INDIRECT("Table10["&Table12[#Headers]&"]"),"<="&INDEX(Table11[Hi],rown))/COUNTIFS(Table10[Type],[Type],INDIRECT("Table10["&Table12[#Headers]&"]"),">0"),NA()) -> 0.125 | M16: =IFERROR(COUNTIFS(Table10[Type],[Type],INDIRECT("Table10["&Table12[#Headers]&"]"),">="&INDEX(Table11[Lo],rown),INDIRECT("Table10["&Table12[#Headers]&"]"),"<="&INDEX(Table11[Hi],rown))/COUNTIFS(Table10[Type],[Type],INDIRECT("Table10["&Table12[#Headers]&"]"),">0"),NA()) ->  | N16: =IFERROR(COUNTIFS(Table10[Type],[Type],INDIRECT("Table10["&Table12[#Headers]&"]"),">="&INDEX(Table11[Lo],rown),INDIRECT("Table10["&Table12[#Headers]&"]"),"<="&INDEX(Table11[Hi],rown))/COUNTIFS(Table10[Type],[Type],INDIRECT("Table10["&Table12[#Headers]&"]"),">0"),NA()) -> 0.375
B17: Calcium | C17: 0.45 | D17: 0.75 | E17: 0.51 | F17: 0.58 | G17: 0.35 | I17: CaxP | J17: =IFERROR(COUNTIFS(Table10[Type],[Type],INDIRECT("Table10["&Table12[#Headers]&"]"),">="&INDEX(Table11[Lo],rown),INDIRECT("Table10["&Table12[#Headers]&"]"),"<="&INDEX(Table11[Hi],rown))/COUNTIFS(Table10[Type],[Type],INDIRECT("Table10["&Table12[#Headers]&"]"),">0"),NA()) -> 0 | K17: =IFERROR(COUNTIFS(Table10[Type],[Type],INDIRECT("Table10["&Table12[#Headers]&"]"),">="&INDEX(Table11[Lo],rown),INDIRECT("Table10["&Table12[#Headers]&"]"),"<="&INDEX(Table11[Hi],rown))/COUNTIFS(Table10[Type],[Type],INDIRECT("Table10["&Table12[#Headers]&"]"),">0"),NA()) -> 0 | L17: =IFERROR(COUNTIFS(Table10[Type],[Type],INDIRECT("Table10["&Table12[#Headers]&"]"),">="&INDEX(Table11[Lo],rown),INDIRECT("Table10["&Table12[#Headers]&"]"),"<="&INDEX(Table11[Hi],rown))/COUNTIFS(Table10[Type],[Type],INDIRECT("Table10["&Table12[#Headers]&"]"),">0"),NA()) -> 0 | M17: =IFERROR(COUNTIFS(Table10[Type],[Type],INDIRECT("Table10["&Table12[#Headers]&"]"),">="&INDEX(Table11[Lo],rown),INDIRECT("Table10["&Table12[#Headers]&"]"),"<="&INDEX(Table11[Hi],rown))/COUNTIFS(Table10[Type],[Type],INDIRECT("Table10["&Table12[#Headers]&"]"),">0"),NA()) -> 0 | N17: =IFERROR(COUNTIFS(Table10[Type],[Type],INDIRECT("Table10["&Table12[#Headers]&"]"),">="&INDEX(Table11[Lo],rown),INDIRECT("Table10["&Table12[#Headers]&"]"),"<="&INDEX(Table11[Hi],rown))/COUNTIFS(Table10[Type],[Type],INDIRECT("Table10["&Table12[#Headers]&"]"),">0"),NA()) -> 0
B18: Calcium | C18: 0.72 | D18: 0.38 | E18: 0.18 | F18: 0.78 | G18: 0.02
B19: Calcium | C19: 0.97 | D19: 0.86 | E19: 0.14 | F19: 0.09 | G19: 0.16
B20: CaxP | C20: 0 | D20: 17.13 | E20: 10.032 | F20: 3.555 | G20: 14.872
B21: CaxP | C21: 0 | D21: 9.086 | E21: 19.872 | F21: 5.22 | G21: 3.39
B22: CaxP | C22: 7.245 | D22: 6.372 | E22: 12.087 | F22: 38.509 | G22: 25.192
B23: CaxP | C23: 13.182 | D23: 1.28 | E23: 13.97 | F23: 23.408 | G23: 14.652
B24: CaxP | C24: 15.262 | D24: 7.315 | E24: 34.24 | F24: 49.86 | G24: 9.398
B25: CaxP | C25: 15.72 | D25: 47.2 | E25: 9.597 | F25: 44.649 | G25: 12.122
B26: CaxP | C26: 19.546 | D26: 1.506 | E26: 9.214 | F26: 10.272 | G26: 11.97
B27: CaxP | C27: 39.13 | D27: 2.73 | E27: 24.95 | F27: 25.65 | G27: 33.542
B28: Ferritin | C28: 308 | D28: 429 | E28: 429 | F28: 439 | G28: 351
B29: Ferritin | C29: 430 | D29: 686 | E29: 311 | F29: 796 | G29: 511
B30: Ferritin | C30: 520 | E30: 692 | F30: 303 | G30: 560
B31: Ferritin | C31: 531 | D31: 566 | E31: 569 | F31: 547 | G31: 303
B32: Ferritin | C32: 566 | D32: 501 | E32: 766 | F32: 550 | G32: 714
B33: Ferritin | C33: 673 | E33: 638 | F33: 551 | G33: 433
B34: Ferritin | C34: 715 | D34: 670 | E34: 379 | F34: 727 | G34: 770
B35: Ferritin | C35: 787 | D35: 639 | E35: 375 | F35: 738 | G35: 489
B36: HCT | C36: 28.2 | D36: 28.5 | E36: 28.3 | F36: 27.3 | G36: 30.6
B37: HCT | C37: 28.9 | D37: 27.7 | E37: 29.8 | F37: 28.5 | G37: 31.1
B38: HCT | C38: 29.2 | D38: 29.7 | F38: 28.1 | G38: 32.5
B39: HCT | C39: 30.1 | D39: 32.7 | F39: 30.6 | G39: 29
B40: HCT | C40: 31.6 | D40: 30.8 | E40: 30 | F40: 31.5 | G40: 32.5
B41: HCT | C41: 32 | D41: 27.1 | E41: 27.1 | F41: 28.6 | G41: 32.2
B42: HCT | C42: 32.2 | D42: 33.3 | E42: 29.2 | F42: 31.2 | G42: 30.9
B43: HCT | C43: 33.8 | D43: 30.9 | F43: 33 | G43: 33
B44: Hemoglobin | C44: 9.04 | D44: 9.83 | E44: 11.5 | F44: 9.36 | G44: 10.5
B45: Hemoglobin | C45: 9.06 | D45: 10.54 | E45: 10.05 | F45: 10.05 | G45: 11.55
B46: Hemoglobin | C46: 10.33 | D46: 10.68 | E46: 9.17 | F46: 10.76 | G46: 11.96
B47: Hemoglobin | C47: 10.6 | D47: 10.17 | E47: 11.19 | F47: 10.39 | G47: 9.88
B48: Hemoglobin | C48: 10.7 | D48: 10.01 | E48: 9.17 | F48: 9.08 | G48: 9.24
B49: Hemoglobin | C49: 11.12 | D49: 11.63 | E49: 9.92 | F49: 9.76 | G49: 11.11
B50: Hemoglobin | C50: 11.4 | D50: 10.87 | E50: 10.54 | F50: 9.56 | G50: 11.52
B51: Hemoglobin | C51: 11.98 | D51: 11.1 | E51: 11.69 | F51: 10.73 | G51: 10.14
B52: Iron | C52: 26.2 | D52: 59 | E52: 45.7 | F52: 45.1 | G52: 55.1
B53: Iron | C53: 31.5 | D53: 17.7 | E53: 23.7 | F53: 39.7 | G53: 26.8
B54: Iron | C54: 33.7 | D54: 50.2 | E54: 27.1 | F54: 10.7 | G54: 57
B55: Iron | C55: 33.8 | D55: 32 | E55: 25.4 | F55: 61.6 | G55: 14.8
B56: Iron | C56: 43 | D56: 45.5 | E56: 49.9 | F56: 67.5 | G56: 54.1
B57: Iron | C57: 58.7 | D57: 13.3 | E57: 42.8 | F57: 55.4 | G57: 25.4
B58: Iron | D58: 57.1 | E58: 26.4 | F58: 23.7 | G58: 33.8
B59: Iron | D59: 64.9 | E59: 21.6 | F59: 14.5 | G59: 67.8
B60: Phosphorus | C60: 0.21 | D60: 0.3 | E60: 0.38 | F60: 0.15 | G60: 0.44
B61: Phosphorus | C61: 0.23 | D61: 0.36 | E61: 0.51 | F61: 0.97 | G61: 0.94
B62: Phosphorus | C62: 0.26 | D62: 0.55 | E62: 0.8 | F62: 0.9 | G62: 0.37
B63: Phosphorus | C63: 0.39 | D63: 0.04 | E63: 0.55 | F63: 0.38 | G63: 0.99
B64: Phosphorus | C64: 0.48 | D64: 0.14 | E64: 0.92 | F64: 0.36 | G64: 0.05
B65: Phosphorus | C65: 0.58 | D65: 0.03 | E65: 0.34 | F65: 0.96 | G65: 0.21
B66: Phosphorus | C66: 0.6 | D66: 0.8 | E66: 0.21 | F66: 0.99 | G66: 0.22
B67: Phosphorus | C67: 0.91 | D67: 0.06 | E67: 0.5 | F67: 0.38 | G67: 0.62
B68: Potassium | C68: 4.17 | D68: 4.35 | E68: 4.42 | G68: 5.79
B69: Potassium | C69: 4.53 | D69: 4.23 | E69: 5.91 | G69: 5.32
B70: Potassium | C70: 4.79 | D70: 5.61 | E70: 4.49 | G70: 5.78
B71: Potassium | C71: 4.88 | D71: 4.79 | E71: 4.1 | G71: 5.09
B72: Potassium | C72: 4.92 | D72: 4.77 | E72: 4.88 | G72: 4.73
B73: Potassium | C73: 5.49 | D73: 5.96 | E73: 5.56 | G73: 4
B74: Potassium | C74: 5.9 | D74: 5.81 | E74: 5.41 | G74: 5.5
B75: Potassium | C75: 5.99 | D75: 4.61 | E75: 4.55 | G75: 5.81

Sheet Billy Rogers
B5: Type | C5: Jan | D5: Feb | E5: Mar | F5: Apr | G5: May
B6: Calcium | C6: 0.05 | D6: 0.83 | E6: 0.36 | F6: 0.71 | G6: 0.06
B7: CaxP | C7: =Calcium*Phosphorus -> 0 | D7: =Calcium*Phosphorus -> 17.13 | E7: =Calcium*Phosphorus -> 10.032 | F7: =Calcium*Phosphorus -> 3.555 | G7: =Calcium*Phosphorus -> 14.872
B8: Ferritin | C8: 673 | E8: 638 | F8: 551 | G8: 433
B9: HCT | C9: 28.9 | D9: 27.7 | E9: 29.8 | F9: 28.5 | G9: 31.1
B10: Hemoglobin | C10: 10.33 | D10: 10.68 | E10: 9.17 | F10: 10.76 | G10: 11.96
B11: Iron | D11: 57.1 | E11: 26.4 | F11: 23.7 | G11: 33.8
B12: Phosphorus | C12: 0.21 | D12: 0.3 | E12: 0.38 | F12: 0.15 | G12: 0.44
B13: Potassium | C13: 4.92 | D13: 4.77 | E13: 4.88 | G13: 4.73

Sheet Phillip Murray
B5: Type | C5: Jan | D5: Feb | E5: Mar | F5: Apr | G5: May
B6: Calcium | C6: 0.39 | D6: 0.8 | E6: 0.06 | F6: 0.99 | G6: 0.76
B7: CaxP | C7: =Calcium*Phosphorus -> 15.72 | D7: =Calcium*Phosphorus -> 47.2 | E7: =Calcium*Phosphorus -> 9.597 | F7: =Calcium*Phosphorus -> 44.649 | G7: =Calcium*Phosphorus -> 12.122
B8: Ferritin | C8: 308 | D8: 429 | E8: 429 | F8: 439 | G8: 351
B9: HCT | C9: 30.1 | D9: 32.7 | F9: 30.6 | G9: 29
B10: Hemoglobin | C10: 9.04 | D10: 9.83 | E10: 11.5 | F10: 9.36 | G10: 10.5
B11: Iron | C11: 26.2 | D11: 59 | E11: 45.7 | F11: 45.1 | G11: 55.1
B12: Phosphorus | C12: 0.6 | D12: 0.8 | E12: 0.21 | F12: 0.99 | G12: 0.22
B13: Potassium | C13: 4.79 | D13: 5.61 | E13: 4.49 | G13: 5.78

Sheet Jason Cook
B5: Type | C5: Jan | D5: Feb | E5: Mar | F5: Apr | G5: May
B6: Calcium | C6: 0.02 | D6: 0.54 | E6: 0.13 | F6: 0.53 | G6: 0.57
B7: CaxP | C7: =Calcium*Phosphorus -> 15.262 | D7: =Calcium*Phosphorus -> 7.315 | E7: =Calcium*Phosphorus -> 34.24 | F7: =Calcium*Phosphorus -> 49.86 | G7: =Calcium*Phosphorus -> 9.398
B8: Ferritin | C8: 430 | D8: 686 | E8: 311 | F8: 796 | G8: 511
B9: HCT | C9: 32 | D9: 27.1 | E9: 27.1 | F9: 28.6 | G9: 32.2
B10: Hemoglobin | C10: 10.6 | D10: 10.17 | E10: 11.19 | F10: 10.39 | G10: 9.88
B11: Iron | C11: 58.7 | D11: 13.3 | E11: 42.8 | F11: 55.4 | G11: 25.4
B12: Phosphorus | C12: 0.26 | D12: 0.55 | E12: 0.8 | F12: 0.9 | G12: 0.37
B13: Potassium | C13: 5.49 | D13: 5.96 | E13: 5.56 | G13: 4

Sheet Albert Ford
B5: Type | C5: Jan | D5: Feb | E5: Mar | F5: Apr | G5: May
B6: Calcium | C6: 0.72 | D6: 0.38 | E6: 0.18 | F6: 0.78 | G6: 0.02
B7: CaxP | C7: =Calcium*Phosphorus -> 7.245 | D7: =Calcium*Phosphorus -> 6.372 | E7: =Calcium*Phosphorus -> 12.087 | F7: =Calcium*Phosphorus -> 38.509 | G7: =Calcium*Phosphorus -> 25.192
B8: Ferritin | C8: 715 | D8: 670 | E8: 379 | F8: 727 | G8: 770
B9: HCT | C9: 31.6 | D9: 30.8 | E9: 30 | F9: 31.5 | G9: 32.5
B10: Hemoglobin | C10: 10.7 | D10: 10.01 | E10: 9.17 | F10: 9.08 | G10: 9.24
B11: Iron | C11: 31.5 | D11: 17.7 | E11: 23.7 | F11: 39.7 | G11: 26.8
B12: Phosphorus | C12: 0.23 | D12: 0.36 | E12: 0.51 | F12: 0.97 | G12: 0.94
B13: Potassium | C13: 4.88 | D13: 4.79 | E13: 4.1 | G13: 5.09

Sheet Ernest Boyd
B5: Type | C5: Jan | D5: Feb | E5: Mar | F5: Apr | G5: May
B6: Calcium | C6: 0.26 | D6: 0.38 | E6: 0.86 | F6: 0.25 | G6: 0.96
B7: CaxP | C7: =Calcium*Phosphorus -> 13.182 | D7: =Calcium*Phosphorus -> 1.28 | E7: =Calcium*Phosphorus -> 13.97 | F7: =Calcium*Phosphorus -> 23.408 | G7: =Calcium*Phosphorus -> 14.652
B8: Ferritin | C8: 531 | D8: 566 | E8: 569 | F8: 547 | G8: 303
B9: HCT | C9: 33.8 | D9: 30.9 | F9: 33 | G9: 33
B10: Hemoglobin | C10: 9.06 | D10: 10.54 | E10: 10.05 | F10: 10.05 | G10: 11.55
B11: Iron | C11: 33.8 | D11: 32 | E11: 25.4 | F11: 61.6 | G11: 14.8
B12: Phosphorus | C12: 0.39 | D12: 0.04 | E12: 0.55 | F12: 0.38 | G12: 0.99
B13: Potassium | C13: 5.9 | D13: 5.81 | E13: 5.41 | G13: 5.5

Sheet Charles Davis
B5: Type | C5: Jan | D5: Feb | E5: Mar | F5: Apr | G5: May
B6: Calcium | C6: 0.02 | D6: 0.94 | E6: 0.95 | F6: 0.86 | G6: 0.67
B7: CaxP | C7: =Calcium*Phosphorus -> 19.546 | D7: =Calcium*Phosphorus -> 1.506 | E7: =Calcium*Phosphorus -> 9.214 | F7: =Calcium*Phosphorus -> 10.272 | G7: =Calcium*Phosphorus -> 11.97
B8: Ferritin | C8: 787 | D8: 639 | E8: 375 | F8: 738 | G8: 489
B9: HCT | C9: 28.2 | D9: 28.5 | E9: 28.3 | F9: 27.3 | G9: 30.6
B10: Hemoglobin | C10: 11.4 | D10: 10.87 | E10: 10.54 | F10: 9.56 | G10: 11.52
B11: Iron | C11: 33.7 | D11: 50.2 | E11: 27.1 | F11: 10.7 | G11: 57
B12: Phosphorus | C12: 0.58 | D12: 0.03 | E12: 0.34 | F12: 0.96 | G12: 0.21
B13: Potassium | C13: 4.17 | D13: 4.35 | E13: 4.42 | G13: 5.79

Sheet George Mcdonald
B5: Type | C5: Jan | D5: Feb | E5: Mar | F5: Apr | G5: May
B6: Calcium | C6: 0.97 | D6: 0.86 | E6: 0.14 | F6: 0.09 | G6: 0.16
B7: CaxP | C7: =Calcium*Phosphorus -> 39.13 | D7: =Calcium*Phosphorus -> 2.73 | E7: =Calcium*Phosphorus -> 24.95 | F7: =Calcium*Phosphorus -> 25.65 | G7: =Calcium*Phosphorus -> 33.542
B8: Ferritin | C8: 566 | D8: 501 | E8: 766 | F8: 550 | G8: 714
B9: HCT | C9: 29.2 | D9: 29.7 | F9: 28.1 | G9: 32.5
B10: Hemoglobin | C10: 11.12 | D10: 11.63 | E10: 9.92 | F10: 9.76 | G10: 11.11
B11: Iron | C11: 43 | D11: 45.5 | E11: 49.9 | F11: 67.5 | G11: 54.1
B12: Phosphorus | C12: 0.91 | D12: 0.06 | E12: 0.5 | F12: 0.38 | G12: 0.62
B13: Potassium | C13: 5.99 | D13: 4.61 | E13: 4.55 | G13: 5.81

Sheet Johnny Brown
B5: Type | C5: Jan | D5: Feb | E5: Mar | F5: Apr | G5: May
B6: Calcium | C6: 0.45 | D6: 0.75 | E6: 0.51 | F6: 0.58 | G6: 0.35
B7: CaxP | C7: =Calcium*Phosphorus -> 0 | D7: =Calcium*Phosphorus -> 9.086 | E7: =Calcium*Phosphorus -> 19.872 | F7: =Calcium*Phosphorus -> 5.22 | G7: =Calcium*Phosphorus -> 3.39
B8: Ferritin | C8: 520 | E8: 692 | F8: 303 | G8: 560
B9: HCT | C9: 32.2 | D9: 33.3 | E9: 29.2 | F9: 31.2 | G9: 30.9
B10: Hemoglobin | C10: 11.98 | D10: 11.1 | E10: 11.69 | F10: 10.73 | G10: 10.14
B11: Iron | D11: 64.9 | E11: 21.6 | F11: 14.5 | G11: 67.8
B12: Phosphorus | C12: 0.48 | D12: 0.14 | E12: 0.92 | F12: 0.36 | G12: 0.05
B13: Potassium | C13: 4.53 | D13: 4.23 | E13: 5.91 | G13: 5.32
